bitfinex/quotes_ETHUSD_20241130
["timestamp","ask_amount","ask_price","bid_price","bid_amount"]
[1732934103456,52.09208,3650.0,3649.9,3.4946]
[1732934103662,52.09208,3650.0,3649.9,4.13712512]
[1732934103874,52.09208,3650.0,3649.9,4.28357842]
[1732934104222,26.33437,3650.0,3649.9,0.23897842]
[1732934104440,26.33437,3650.0,3649.3,0.14598555]
[1732934104658,26.33437,3650.0,3649.7,2.73992]
[1732934104864,26.33437,3650.0,3649.9,2.7398]
[1732934105172,26.33437,3650.0,3649.5,2.74005]
[1732934105377,26.33437,3650.0,3649.2,0.795]
[1732934105533,26.33437,3650.0,3649.3,0.09117007]
[1732934105736,26.33437,3650.0,3648.5,2.74085]
[1732934105737,2.74001,3649.7,3648.5,2.74085]
[1732934106033,2.74004,3649.6,3648.4,2.74092]
[1732934106347,2.633937,3649.9,3648.7,2.74064]
[1732934106551,2.73995,3649.7,3648.7,2.74064]
[1732934106856,2.7401,3649.5,3648.7,2.74064]
[1732934107033,2.73995,3649.7,3648.8,2.7406]
[1732934107234,2.7401,3649.5,3648.7,2.74064]
[1732934107467,5.41572547,3649.8,3648.7,2.74064]
[1732934107468,2.72583547,3649.7,3648.9,2.74054]
[1732934107631,26.33437,3650.0,3648.8,3.59144977]
[1732934107838,26.33437,3650.0,3649.8,2.73984]
[1732934108038,26.33437,3650.0,3649.5,2.74008]
[1732934108285,26.33437,3650.0,3649.0,2.74045]
[1732934108286,2.7398,3649.9,3649.0,2.74045]
[1732934108431,2.60737169,3649.8,3649.1,0.0889281]
[1732934108629,2.60737169,3649.8,3649.0,2.74045]
[1732934109048,5.34726169,3649.8,3649.0,2.74045]
[1732934109248,2.60737169,3649.8,3649.0,2.74045]
[1732934109485,2.60737169,3649.8,3649.3,2.74024]
[1732934109973,26.33437,3650.0,3649.8,2.73987]
[1732934110829,26.33437,3650.0,3649.7,2.73994]
[1732934111030,26.33437,3650.0,3649.4,2.74016]
[1732934111275,26.33437,3650.0,3648.8,3.53562]
[1732934111276,2.74009,3649.6,3648.8,3.53562]
[1732934111434,28.968307,3650.0,3649.0,2.74047]
[1732934111829,26.33437,3650.0,3649.2,2.74027]
[1732934112075,26.33437,3650.0,3649.0,2.74043]
[1732934112242,26.33437,3650.0,3649.2,2.74025]
[1732934112569,26.33437,3650.0,3649.4,2.74017]
[1732934113136,26.33437,3650.0,3649.2,2.74031]
[1732934113469,0.7903,3649.8,3648.7,2.74065]
[1732934113767,2.74009,3649.6,3648.7,2.74065]
[1732934114372,2.74009,3649.6,3648.8,2.74061]
[1732934114580,0.7903,3649.8,3647.8,0.8082]
[1732934114746,2.7407,3648.7,3647.9,0.22280727]
[1732934115071,2.74055,3648.9,3647.8,0.8082]
[1732934115231,2.74055,3648.9,3648.1,2.74114]
[1732934116467,2.74041,3649.1,3648.3,2.741]
[1732934116677,0.548078,3649.0,3648.4,2.74088]
[1732934116836,2.74041,3649.1,3648.4,2.74088]
[1732934117448,2.74017,3649.4,3648.5,2.74084]
[1732934117659,2.74017,3649.4,3647.8,0.8082]
[1732934117660,2.72583547,3649.7,3648.3,0.02740804]
[1732934117882,2.72583547,3649.7,3649.0,2.74046]
[1732934118046,0.39119083,3649.6,3649.1,2.7404]
[1732934118378,0.39119083,3649.6,3648.9,2.74053]
[1732934118589,5.46584547,3649.7,3648.9,2.74053]
[1732934118736,2.72583547,3649.7,3648.6,2.7407]
[1732934119076,2.72583547,3649.7,3648.8,2.74055]
[1732934119273,2.74015,3649.5,3648.7,2.74068]
[1732934119493,2.72583547,3649.7,3648.4,2.74089]
[1732934119494,2.74035,3649.2,3648.4,2.74089]
[1732934119655,2.74025,3649.3,3648.5,0.08569431]
[1732934119850,6.02700855,3649.4,3647.9,2.7413]
[1732934120090,0.54659855,3649.4,3648.0,0.22282258]
[1732934120291,2.74016,3649.5,3648.1,0.08570099]
[1732934120462,2.7403,3649.3,3648.4,2.74085]
[1732934120668,2.74041,3649.1,3648.5,2.96364706]
[1732934120895,5.46582547,3649.7,3648.7,2.74063]
[1732934121098,0.66518983,3649.6,3648.5,2.74084]
[1732934121398,2.74026,3649.3,3648.6,2.82646996]
[1732934121559,2.74033,3649.2,3648.6,2.74075]
[1732934121890,2.74033,3649.2,3648.4,2.74086]
[1732934122204,0.66518983,3649.6,3648.6,2.7407]
[1732934122356,0.66518983,3649.6,3649.1,2.74039]
[1732934122557,0.69212153,3649.5,3648.1,0.14256703]
[1732934122786,2.74032,3649.2,3648.2,0.08578367]
[1732934122984,0.69212153,3649.5,3648.3,0.08578367]
[1732934123201,0.7903,3648.9,3648.3,0.22305696]
[1732934123494,0.7903,3648.9,3648.4,0.08578367]
[1732934123701,2.74085,3648.5,3648.4,0.08578367]
[1732934124069,2.741,3648.3,3647.7,0.41248837]
[1732934124391,2.741,3648.3,3647.8,0.22356228]
[1732934124692,2.741,3648.3,3647.9,0.08597391]
[1732934124693,0.8664,3648.2,3647.9,0.08597391]
[1732934124990,0.8664,3648.2,3647.5,0.2749]
[1732934125296,2.74132,3647.9,3647.5,0.2749]
[1732934125501,2.74132,3647.9,3647.6,0.22464337]
[1732934125669,2.74152,3647.6,3647.5,0.2749]
[1732934125882,3.60837,3647.0,3646.9,0.41896103]
[1732934126071,4.243389,3647.0,3646.9,0.3613858]
[1732934126259,4.243389,3647.0,3646.9,0.2749]
[1732934126903,4.243389,3647.0,3646.2,0.13834805]
[1732934126904,2.74228,3646.6,3646.3,0.2749]
[1732934127200,0.8664,3647.0,3646.5,0.2749]
[1732934127423,0.8664,3647.0,3646.6,0.22500584]
[1732934127597,2.74213,3646.8,3646.7,0.22500584]
[1732934127970,3.377174,3646.8,3646.7,0.22500584]
[1732934128163,3.377174,3646.8,3646.7,0.08665779]
[1732934128402,3.377174,3646.8,3646.7,0.22543447]
[1732934128715,3.377174,3646.8,3644.7,2.74369]
[1732934128716,0.8664,3648.2,3647.3,2.74175]
[1732934128862,0.8664,3648.2,3647.4,0.22531569]
[1732934129067,0.8664,3648.2,3645.8,2.7428]
[1732934129068,2.74152,3647.6,3647.5,0.22531569]
[1732934129263,3.60792,3647.6,3647.5,0.22531569]
[1732934129700,3.60792,3647.6,3647.5,0.08665234]
[1732934130001,4.252853,3647.6,3647.5,0.08665234]
[1732934130377,2.74228,3646.6,3646.5,0.14449216]
[1732934130565,2.74228,3646.6,3646.5,0.13880506]
[1732934131196,3.60868,3646.6,3646.5,0.13880506]
[1732934131965,2.74272,3646.1,3645.6,0.14449216]
[1732934132277,2.74279,3646.0,3645.7,0.13866146]
[1732934132481,2.74279,3646.0,3645.8,0.13866146]
[1732934132808,2.7431,3645.5,3644.8,0.14450796]
[1732934133118,0.8664,3645.8,3644.7,0.14450796]
[1732934133414,0.8664,3645.8,3644.0,0.2749]
[1732934133415,2.74343,3645.1,3644.5,0.14450796]
[1732934133713,2.74343,3645.1,3643.7,0.9015]
[1732934133714,2.74392,3644.5,3643.9,0.14450796]
[1732934133894,0.8664,3645.7,3644.0,2.88873796]
[1732934134092,0.8664,3645.7,3644.8,2.74362]
[1732934134427,0.8664,3645.7,3644.5,0.1443265]
[1732934134608,2.74317,3645.5,3644.4,0.1443265]
[1732934134779,2.74317,3645.5,3644.8,2.74361]
[1732934134979,2.74317,3645.5,3644.8,3.292349]
[1732934135365,0.8664,3645.7,3644.8,3.292349]
[1732934135565,0.8664,3645.7,3645.0,2.74342]
[1732934135782,2.74326,3645.3,3644.8,0.548739]
[1732934136023,2.74313,3645.5,3644.7,2.7437]
[1732934136327,2.74313,3645.5,3643.4,6.33607977]
[1732934136328,0.8664,3645.4,3644.4,0.14416388]
[1732934136619,0.8664,3646.3,3645.5,2.74309]
[1732934136788,0.8664,3646.8,3645.5,0.274309]
[1732934136973,0.8664,3646.8,3645.3,0.9015]
[1732934136974,0.8664,3646.8,3646.0,2.7427]
[1732934137177,0.8664,3646.8,3645.2,0.14402716]
[1732934137411,2.74235,3646.6,3645.7,2.74288]
[1732934137574,2.74259,3646.2,3645.6,0.002248]
[1732934137776,2.74274,3646.0,3645.6,0.002248]
[1732934138232,0.36093453,3646.7,3645.6,0.002248]
[1732934138549,2.74267,3646.1,3645.6,0.002248]
[1732934139045,0.36093453,3646.7,3645.6,0.002248]
[1732934139271,2.7422,3646.7,3645.6,0.002248]
[1732934139552,0.8664,3646.8,3645.6,2.745268]
[1732934139553,2.7425,3646.3,3645.6,2.745268]
[1732934139710,2.7426,3646.2,3645.6,0.002248]
[1732934140414,2.74266,3646.1,3645.6,0.002248]
[1732934140811,0.8664,3646.8,3646.1,2.7426]
[1732934141023,0.8664,3646.8,3646.1,2.74259]
[1732934141607,0.00093533,3646.9,3646.2,2.74256]
[1732934141809,0.00093533,3646.9,3646.8,2.74213]
[1732934142136,0.00093533,3646.9,3646.8,3.102273]
[1732934142456,0.00093533,3646.9,3646.8,3.18800961]
[1732934142947,0.00093533,3646.9,3646.8,3.32518544]
[1732934143146,0.00093533,3646.9,3646.8,2.96504244]
[1732934143335,0.00093533,3646.9,3646.8,0.22291244]
[1732934143535,2.74298533,3646.9,3646.8,0.08573661]
[1732934143739,0.00093533,3646.9,3646.8,0.08573661]
[1732934144647,0.00093533,3646.9,3646.8,4.15454244]
[1732934144846,0.00093533,3646.9,3646.8,4.85821523]
[1732934145159,0.00093533,3646.9,3646.8,3.66871523]
[1732934145886,0.00093533,3646.9,3646.8,3.05078089]
[1732934146197,0.00093533,3646.9,3646.8,0.22291428]
[1732934146356,0.00093533,3646.9,3646.8,2.96504428]
[1732934147282,0.00093533,3646.9,3646.8,3.10521056]
[1732934147489,0.00093533,3646.9,3646.8,2.96504428]
[1732934149211,0.00093533,3646.9,3646.8,0.22291428]
[1732934149511,0.00093533,3646.9,3646.8,0.22292024]
[1732934150059,3.13803886,3646.9,3646.8,0.22292024]
[1732934150392,3.13803886,3646.9,3646.8,0.08573855]
[1732934151062,0.00093533,3646.9,3646.8,0.08573855]
[1732934151265,0.00093533,3646.9,3646.8,0.22292024]
[1732934151563,0.00093533,3646.9,3646.8,3.10373686]
[1732934151769,0.00093533,3646.9,3646.8,0.22292024]
[1732934151770,3.95068533,3646.9,3646.8,0.22292024]
[1732934152073,3.95068533,3646.9,3646.8,0.08573855]
[1732934152074,4.34575386,3646.9,3646.8,0.08573855]
[1732934152285,2.74273,3646.0,3645.9,0.13722626]
[1732934152488,3.95043,3646.0,3645.9,0.13722626]
[1732934153195,1.2077,3646.0,3645.9,0.13722626]
[1732934153500,1.2077,3646.5,3645.6,0.002248]
[1732934153700,2.74263,3646.2,3645.7,0.13724738]
[1732934153859,2.74272,3646.1,3645.7,0.13724738]
[1732934154062,2.74273,3646.0,3645.8,0.13724738]
[1732934154469,2.74273,3646.0,3645.9,0.13724738]
[1732934154703,2.74316,3645.5,3645.1,0.13868662]
[1732934154911,1.2077,3645.2,3644.3,0.13868662]
[1732934155220,2.74369,3644.8,3644.2,0.13868662]
[1732934155366,2.74369,3644.8,3644.1,2.88282662]
[1732934155864,2.74373,3644.7,3644.0,0.13868662]
[1732934156064,2.74373,3644.7,3643.9,2.88382453]
[1732934156374,2.744,3644.4,3643.7,2.88393453]
[1732934156590,1.2077,3644.4,3643.7,0.13952453]
[1732934156796,1.2077,3644.4,3643.6,0.13952453]
[1732934157030,1.2077,3644.4,3643.5,0.13952453]
[1732934157239,2.74442,3643.8,3643.4,0.13952453]
[1732934157528,2.74441,3643.8,3643.4,0.13952453]
[1732934157836,2.74442,3643.8,3643.1,2.74488]
[1732934158046,1.2077,3643.7,3642.7,0.13952453]
[1732934158335,1.2077,3643.7,3642.5,2.74531]
[1732934158336,2.74491,3643.1,3642.5,2.88482453]
[1732934158549,2.74491,3643.1,3641.8,2.74584]
[1732934158550,2.74491,3643.1,3642.2,0.13952453]
[1732934158695,2.745,3643.0,3642.1,2.88511453]
[1732934158894,1.6303371,3643.7,3642.2,2.74559]
[1732934159096,1.6303371,3643.7,3642.1,0.13952453]
[1732934159097,2.74522,3642.7,3642.3,0.28851145]
[1732934159330,1.2077,3643.1,3641.9,2.74579]
[1732934159534,1.2077,3643.1,3641.0,1.1895]
[1732934159535,2.7456,3642.2,3641.6,0.1392238]
[1732934159736,2.7456,3642.2,3641.7,0.28852938]
[1732934159737,2.74566,3642.2,3641.7,0.28852938]
[1732934159896,2.74574,3642.0,3641.3,0.1392238]
[1732934160098,2.74574,3642.0,3641.3,2.74624]
[1732934160321,2.74581,3641.9,3641.2,2.8855438]
[1732934160505,2.74567,3642.1,3641.1,0.1392238]
[1732934160748,3.9533,3642.2,3641.4,2.74614]
[1732934160906,3.9533,3642.2,3641.5,0.549248]
[1732934161140,0.1,3643.4,3641.5,0.549248]
[1732934161141,1.2077,3642.7,3641.5,0.5767093]
[1732934161315,2.74531,3642.6,3641.7,0.1392238]
[1732934161638,2.74572,3642.1,3641.6,0.1392238]
[1732934161839,2.74572,3642.1,3640.7,1.1895]
[1732934161840,2.74572,3642.1,3641.4,2.74618]
[1732934161997,1.2077,3642.5,3641.4,2.74618]
[1732934161998,1.2077,3642.5,3641.4,0.549252]
[1732934162205,2.74513,3642.9,3642.0,2.7457]
[1732934162402,2.74491,3643.1,3641.7,1.1895]
[1732934162669,1.2077,3643.2,3641.7,1.1895]
[1732934162799,2.7453,3642.6,3641.7,3.93544]
[1732934163137,2.74529,3642.6,3641.7,2.74594]
[1732934163345,2.74517,3642.8,3641.4,1.1895]
[1732934163545,1.2077,3643.2,3641.4,1.21695922]
[1732934163842,0.00093533,3641.8,3641.7,3.29591]
[1732934164049,5.33e-06,3641.8,3641.7,5.27295877]
[1732934164341,5.33e-06,3641.8,3641.7,5.13373497]
[1732934164518,5.33e-06,3641.8,3641.7,5.21957358]
[1732934164722,5.33e-06,3641.8,3641.7,5.35690241]
[1732934164904,5.33e-06,3641.8,3641.7,5.71500777]
[1732934165105,5.33e-06,3641.8,3641.7,4.15857744]
[1732934165305,5.33e-06,3641.8,3641.7,0.22316744]
[1732934165842,1.281,3642.2,3641.7,0.22316744]
[1732934165843,0.1,3643.2,3641.7,0.22319779]
[1732934166000,2.74574,3642.0,3641.3,2.74624]
[1732934166199,2.74582,3641.9,3641.4,0.08587018]
[1732934166401,2.74562,3642.2,3641.5,0.08587018]
[1732934166709,2.74574,3642.0,3641.2,0.13739802]
[1732934166903,2.74574,3642.0,3641.2,2.96960105]
[1732934167130,2.74587,3641.9,3641.3,0.08587303]
[1732934167331,2.74587,3641.9,3641.4,0.08587303]
[1732934167532,2.7457,3642.1,3640.7,2.74672]
[1732934167843,2.74579,3642.0,3641.2,2.74632]
[1732934168046,2.74543,3642.5,3641.6,2.74597]
[1732934168351,2.7452,3642.8,3641.9,2.74576]
[1732934168533,2.74524,3642.7,3642.0,0.08586355]
[1732934168735,0.1,3643.5,3641.6,2.74598]
[1732934168918,2.74572,3642.1,3641.7,0.08586461]
[1732934169119,0.1,3643.3,3641.0,1.548251]
[1732934169120,2.74583,3641.9,3641.4,0.13738505]
[1732934169321,2.74583,3641.9,3641.2,2.74632]
[1732934169641,4.02674,3642.0,3641.3,0.08587325]
[1732934169848,4.02674,3642.0,3641.1,2.74641]
[1732934169849,2.74596,3641.8,3641.0,2.74647]
[1732934170007,2.74599,3641.7,3641.1,0.08587618]
[1732934170205,2.74602,3641.7,3640.9,2.74654]
[1732934170413,2.74627,3641.3,3640.6,2.74678]
[1732934170613,2.74643,3641.1,3640.1,2.74717]
[1732934170839,2.74643,3641.1,3640.4,2.74688]
[1732934170840,1.281,3641.1,3640.4,2.74688]
[1732934171141,1.281,3641.1,3640.6,2.74672]
[1732934171343,1.281,3641.1,3640.0,1.2736]
[1732934171344,1.281,3641.1,3640.2,2.74708]
[1732934171557,2.74663,3640.9,3640.0,2.74718]
[1732934171756,4.02742,3641.1,3640.0,0.274718]
[1732934172050,2.74608,3641.6,3640.9,2.74656]
[1732934172249,1.281,3641.7,3639.8,1.2736]
[1732934172250,1.281,3641.7,3639.8,1.1236]
[1732934172456,2.74618,3641.5,3640.7,2.74672]
[1732934172751,4.02699,3641.7,3639.8,1.1236]
[1732934172752,2.74656,3641.0,3639.8,1.1236]
[1732934172950,2.74656,3641.0,3640.2,2.74709]
[1732934173107,2.74635,3641.2,3640.4,2.74692]
[1732934173448,0.402699,3641.6,3638.7,2.74823]
[1732934173449,2.74662,3640.9,3638.7,2.74823]
[1732934173651,1.281,3641.1,3639.7,2.74741]
[1732934173852,2.74665,3640.8,3640.1,2.74712]
[1732934174065,2.74655,3641.0,3640.2,2.74708]
[1732934174207,2.74664,3640.8,3638.8,0.66956231]
[1732934174409,2.74685,3640.6,3639.9,2.74732]
[1732934174710,2.74671,3640.8,3639.0,5.496]
[1732934175048,2.74697,3640.4,3639.6,2.7475]
[1732934175259,2.74697,3640.4,3639.4,2.74769]
[1732934175260,2.7471,3640.2,3639.4,2.74767]
[1732934175423,2.74697,3640.4,3639.4,3.297252]
[1732934175815,2.74664,3640.8,3639.4,2.7477]
[1732934175965,1.281,3640.1,3639.6,2.7475]
[1732934176166,4.02818,3640.1,3639.3,2.74776]
[1732934176552,1.281,3640.1,3639.4,2.74767]
[1732934176720,4.02824,3640.1,3639.4,3.10835488]
[1732934176922,1.281,3640.1,3639.5,0.08591829]
[1732934177224,2.74726,3640.0,3639.6,0.08591489]
[1732934177548,1.281,3640.1,3639.5,2.74761]
[1732934177861,1.281,3640.1,3639.5,0.58559949]
[1732934178044,1.281,3640.5,3639.9,2.74732]
[1732934178357,1.281,3640.5,3640.0,0.08590607]
[1732934178557,1.281,3640.5,3640.2,2.74709]
[1732934178759,1.281,3640.5,3639.9,2.74732]
[1732934178933,1.281,3640.5,3640.0,2.83313745]
[1732934179126,1.281,3640.5,3639.4,0.36068488]
[1732934179330,1.281,3640.5,3639.5,0.39676029]
[1732934179591,1.281,3640.5,3639.4,0.08591788]
[1732934179592,2.74698,3640.4,3639.6,2.8334188]
[1732934179787,1.281,3640.5,3639.9,2.74732]
[1732934180091,1.281,3640.5,3639.4,0.08591788]
[1732934180259,1.281,3640.5,3639.6,2.74748]
[1732934180462,1.281,3640.5,3639.7,0.08591382]
[1732934180811,1.281,3640.5,3639.8,0.08591382]
[1732934180939,2.74701,3640.4,3639.9,0.08591382]
[1732934181242,2.74727,3640.0,3639.4,2.83360788]
[1732934181443,2.74715,3640.2,3639.5,0.22338386]
[1732934181678,2.74715,3640.2,3639.6,0.08591687]
[1732934181874,2.74733,3639.9,3639.7,0.08591687]
[1732934182103,1.281,3639.7,3639.4,0.08591788]
[1732934182295,1.281,3639.7,3639.5,0.08592569]
[1732934182445,2.74704,3640.3,3639.6,0.08592569]
[1732934182446,1.281,3640.2,3639.6,0.08592569]
[1732934182646,2.74619,3641.4,3639.7,0.08592569]
[1732934182882,4.02781,3640.6,3640.0,2.74723]
[1732934183151,2.74694,3640.5,3640.1,0.22338141]
[1732934183378,2.74694,3640.5,3640.2,0.08592569]
[1732934183576,2.74694,3640.5,3640.3,0.08592569]
[1732934183780,2.74694,3640.5,3640.0,0.13745572]
[1732934184087,2.74694,3640.5,3640.1,0.08591266]
[1732934184395,2.74694,3640.5,3640.2,0.22336838]
[1732934184590,2.74694,3640.5,3640.3,0.08591266]
[1732934184791,2.74711,3640.2,3639.6,2.88138513]
[1732934185026,2.74695,3640.4,3639.7,0.22336908]
[1732934185206,2.7471,3640.2,3639.8,0.22338559]
[1732934185390,2.7471,3640.2,3639.9,0.22338559]
[1732934185714,2.74717,3640.1,3640.0,0.22338559]
[1732934186219,3.99407,3640.1,3640.0,0.08591753]
[1732934186426,2.74755,3639.6,3639.5,0.13748861]
[1732934186631,2.74755,3639.6,3639.5,0.22342353]
[1732934186782,2.74755,3639.6,3639.5,0.08593492]
[1732934186977,2.74755,3639.6,3639.5,0.22343557]
[1732934187696,3.99445,3639.6,3639.5,0.22343557]
[1732934188015,4.668641,3639.6,3639.5,0.08593492]
[1732934188582,2.74798,3639.1,3638.7,0.13751241]
[1732934188832,2.74814,3638.9,3638.8,0.22345808]
[1732934189138,2.74823,3638.7,3638.6,0.1559433]
[1732934189431,0.674302,3638.8,3638.6,0.1559433]
[1732934189583,2.74814,3638.9,3638.6,0.1559433]
[1732934189781,2.74823,3638.7,3638.6,0.1559433]
[1732934189986,2.74817,3638.8,3638.6,0.1559433]
[1732934190225,2.74823,3638.7,3638.6,0.1559433]
[1732934190410,2.74808,3638.9,3638.6,0.1559433]
[1732934190599,2.74817,3638.8,3638.6,0.1559433]
[1732934190979,2.74823,3638.7,3638.6,0.1559433]
[1732934191606,3.422551,3638.7,3638.6,0.1559433]
[1732934192084,4.669451,3638.7,3638.6,0.1559433]
[1732934193121,1.2469,3637.4,3635.8,1.2474]
[1732934193423,3.99587,3637.8,3637.1,2.74938]
[1732934193594,2.74899,3637.7,3636.9,3.99699]
[1732934193920,3.99584,3637.8,3636.9,1.2474]
[1732934194120,1.2469,3637.8,3636.9,1.2474]
[1732934194297,1.2469,3637.8,3636.9,1.64044867]
[1732934194501,1.2469,3637.8,3637.2,2.74933]
[1732934194730,3.99581,3637.8,3637.2,2.74933]
[1732934195446,3.99581,3637.8,3637.0,2.74951]
[1732934195447,1.2469,3637.8,3637.0,2.74951]
[1732934195648,1.2469,3637.8,3636.9,1.24073167]
[1732934195649,2.74922,3637.4,3636.9,1.24073167]
[1732934195831,3.99584,3637.8,3636.2,2.75012]
[1732934196032,2.74911,3637.6,3636.9,2.74958]
[1732934196411,2.74914,3637.5,3636.9,2.74958]
[1732934196608,2.74914,3637.5,3636.7,2.74974]
[1732934196808,2.74914,3637.5,3636.8,2.74966]
[1732934197049,2.74919,3637.5,3636.8,2.74966]
[1732934197248,2.74921,3637.5,3636.8,2.74966]
[1732934197407,1.2469,3637.8,3636.8,2.74966]
[1732934197610,2.74922,3637.4,3636.6,2.74981]
[1732934197830,2.74922,3637.4,3636.7,2.74968]
[1732934198231,2.74922,3637.4,3636.4,1.2474]
[1732934198472,2.74931,3637.3,3636.6,2.74977]
[1732934198641,2.74937,3637.2,3636.6,2.74977]
[1732934198810,2.74937,3637.2,3636.4,1.2474]
[1732934198811,2.74943,3637.2,3636.4,1.2474]
[1732934199007,2.74929,3637.3,3636.6,2.74979]
[1732934199331,2.74914,3637.5,3636.7,0.13758597]
[1732934199509,2.74935,3637.3,3636.6,2.74979]
[1732934199710,3.299179,3637.3,3636.8,0.13758198]
[1732934199955,1.2469,3636.6,3635.2,1.2474]
[1732934200249,2.75,3636.4,3635.6,2.7505]
[1732934200551,2.75,3636.4,3635.7,0.137601]
[1732934200845,3.99678,3636.6,3635.9,2.75035]
[1732934201055,2.75004,3636.4,3636.0,0.22360834]
[1732934201357,2.75012,3636.2,3636.1,0.22360834]
[1732934201536,2.75012,3636.2,3635.6,2.75057]
[1732934201727,2.74991,3636.5,3635.7,0.22362272]
[1732934201930,2.75008,3636.3,3635.8,0.22362272]
[1732934202279,1.2469,3636.6,3635.3,0.41542033]
[1732934202280,1.2469,3636.6,3635.9,0.22362272]
[1732934202566,2.75019,3636.1,3636.0,0.22363025]
[1732934202729,2.75019,3636.1,3636.0,0.08600874]
[1732934203557,3.99672,3636.6,3636.0,0.08600874]
[1732934203717,3.99672,3636.6,3635.6,1.2474]
[1732934203718,2.74991,3636.5,3636.1,0.08600874]
[1732934203921,3.99672,3636.6,3636.2,0.08600874]
[1732934204122,1.2469,3636.6,3636.3,0.08600882]
[1732934204422,4.09947,3637.0,3636.4,0.08600767]
[1732934204613,4.09947,3637.0,3636.5,0.08600767]
[1732934204818,4.09947,3637.0,3636.3,2.75004]
[1732934205012,2.74981,3636.7,3636.4,0.2236121]
[1732934205262,2.74982,3636.6,3636.5,0.08600342]
[1732934205615,2.74982,3636.6,3636.0,0.13760157]
[1732934205819,2.74961,3636.9,3636.1,2.97378732]
[1732934205820,2.74972,3636.8,3636.1,2.97378732]
[1732934206054,1.3499,3637.0,3635.6,1.2474]
[1732934206055,4.09945,3637.0,3636.3,2.74999]
[1732934206264,1.3499,3637.0,3636.1,2.75018]
[1732934206430,1.3499,3637.0,3636.4,0.08599643]
[1732934206624,2.75004,3636.4,3635.7,2.75049]
[1732934206820,2.74989,3636.6,3635.8,0.08600945]
[1732934207131,2.74989,3636.6,3635.9,0.22362844]
[1732934207329,2.74989,3636.6,3636.0,0.22362844]
[1732934207644,2.74989,3636.6,3635.3,1.46176433]
[1732934207645,2.75011,3636.3,3636.1,0.08600945]
[1732934207829,2.75011,3636.3,3635.7,0.13761899]
[1732934208032,2.75011,3636.3,3635.8,0.22363249]
[1732934208231,1.3499,3636.5,3635.9,0.08601589]
[1732934208422,2.75027,3636.0,3635.4,0.13761899]
[1732934208759,2.75027,3636.0,3635.5,0.13761899]
[1732934208918,2.75027,3636.0,3635.6,0.13761899]
[1732934209125,0.1899856,3636.4,3635.5,0.13761899]
[1732934209433,2.75042,3635.8,3635.6,0.13761899]
[1732934209628,2.75035,3636.0,3635.1,2.75093]
[1732934209841,2.75082,3635.3,3634.6,2.75132]
[1732934210072,1.2673,3635.4,3633.8,1.3784]
[1732934210232,2.75095,3635.1,3634.4,2.75147]
[1732934210428,3.427855,3635.1,3633.8,1.3784]
[1732934210780,3.427855,3635.1,3634.3,2.75155]
[1732934210929,3.427855,3635.1,3633.8,1.3784]
[1732934210930,3.427855,3635.1,3634.0,2.75178]
[1732934211123,3.427855,3635.1,3633.8,4.13033]
[1732934211455,3.427855,3635.1,3633.9,2.75184]
[1732934211629,3.427855,3635.1,3633.8,1.3784]
[1732934211630,3.427855,3635.1,3633.8,4.13026]
[1732934211823,3.427855,3635.1,3634.1,2.75169]
[1732934212024,3.427855,3635.1,3633.9,2.75182]
[1732934212255,3.427855,3635.1,3633.8,4.13026]
[1732934212659,3.427855,3635.1,3633.8,1.3784]
[1732934213023,3.427855,3635.1,3633.8,4.13033]
[1732934213228,2.75095,3635.1,3634.3,2.7515]
[1732934213651,2.75095,3635.1,3634.1,2.7517]
[1732934213854,2.75095,3635.1,3634.2,2.75161]
[1732934214441,2.7507,3635.5,3634.9,2.75109]
[1732934214642,4.0177,3635.9,3634.5,1.3784]
[1732934214832,2.75056,3635.7,3635.0,2.9069233]
[1732934215243,2.75051,3635.7,3635.0,2.9069233]
[1732934215439,2.75051,3635.7,3635.1,2.7509]
[1732934215675,2.75047,3635.8,3635.2,2.75082]
[1732934215981,2.7505,3635.7,3635.0,2.9069433]
[1732934216165,2.75058,3635.6,3635.0,2.9069433]
[1732934216530,2.7507,3635.5,3635.0,0.1559433]
[1732934217382,2.75058,3635.6,3635.0,2.9069633]
[1732934217558,3.50359961,3635.6,3635.0,2.9069633]
[1732934217943,3.50359961,3635.6,3635.0,0.1559433]
[1732934218150,2.75075,3635.4,3635.0,0.1559433]
[1732934218356,0.75301961,3635.6,3635.0,0.1559433]
[1732934218647,2.75078,3635.4,3635.0,0.1559433]
[1732934218973,0.75301961,3635.6,3635.0,2.9069433]
[1732934219145,2.7507,3635.5,3635.0,0.1559433]
[1732934219355,2.75063,3635.6,3635.0,2.9069433]
[1732934219693,1.2673,3635.9,3635.0,0.1559433]
[1732934219858,2.75093,3635.2,3635.0,0.1559433]
[1732934220060,2.75095,3635.1,3635.0,0.1559433]
[1732934220260,2.75095,3635.1,3635.0,0.37964394]
[1732934220477,4.01825,3635.1,3635.0,0.24198201]
[1732934220683,1.2673,3635.0,3633.4,2.75221]
[1732934221028,0.28596521,3633.9,3633.5,4.2682365]
[1732934221150,0.28596521,3633.9,3633.6,2.8897565]
[1732934221350,0.28596521,3633.9,3633.7,0.1376765]
[1732934221592,0.28596521,3633.9,3633.8,0.1376765]
[1732934221963,0.28596521,3633.9,3633.8,2.8896165]
[1732934222753,0.28596521,3633.9,3633.8,3.43962254]
[1732934222947,0.28596521,3633.9,3633.8,0.13768254]
[1732934224575,1.66056521,3633.9,3633.8,0.13768254]
[1732934224784,1.66056521,3633.9,3632.7,2.75275]
[1732934224985,2.75229,3633.4,3632.7,2.75275]
[1732934225316,2.75241,3633.2,3632.6,4.07372]
[1732934225609,1.3746,3633.0,3632.3,2.75302]
[1732934225809,2.75262,3632.9,3631.7,2.75347]
[1732934226035,1.3746,3633.0,3631.8,2.75343]
[1732934226036,2.75277,3632.7,3631.8,2.75343]
[1732934226216,1.3746,3633.0,3631.6,2.75357]
[1732934226217,2.75315,3632.2,3631.6,2.75357]
[1732934226371,2.75315,3632.2,3631.5,2.75365]
[1732934226571,2.75301,3632.4,3631.2,1.3209]